[Event "WTCC-65 2018"]
[Site "Radebeul"]
[Date "2018.07.11"]
[Round "5"]
[White "Gundersen, Helge"]
[Black "Kargoll, Herbert"]
[Result "1-0"]
[ECO "C00"]
[WhiteElo "2089"]
[BlackElo "2230"]
[Annotator "NA"]
[PlyCount "93"]
[EventDate "2018.07.07"]
[EventType "team-tourn"]
[EventCountry "GER"]
[SourceTitle "playchess.com"]
[Source "ChessBase"]
[SourceQuality "1"]
[TimeControl "40/5400+30:1800+30"]

1. e4 {[%emt 0:00:00]} e6 {[%emt 0:00:00]} 2. b3 {[%emt 0:00:00]} d5 {[%emt 0:02:47]} 3. Bb2 {[%emt 0:00:00]} dxe4 {[%emt 0:03:10]} 4. Nc3 {[%emt 0:00:07]} Nf6 {[%emt 0:02:03]} 5. Qe2 {[%emt 0:00:21]} Bd7 {[%emt 0:03:06]} 6. Nxe4 {[%emt 0:04:06]} Nxe4 {[%emt 0:00:07]} 7. Qxe4 {[%emt 0:00:03]} Bc6 {[%emt 0:00:07]} 8. Qg4 {[%emt 0:02:57]} Nd7 {[%emt 0:08:05]} 9. Nf3 {[%emt 0:19:26]} Nf6 {[%emt 0:01:08]} 10. Qh3 {[%emt 0:00:11]} Qd5 {[%emt 0:04:51]} 11. Bd3 {[%emt 0:14:35]} h5 {[%emt 0:08:20]} 12. O-O-O {[%emt 0:08:20]} Ng4 {[%emt 0:04:46]} 13. Rhf1 {[%emt 0:01:46]} O-O-O {[%emt 0:11:12]} 14. Rde1 {[%emt 0:01:47]} Qc5 {[%emt 0:02:17]} 15. Ne5 {[%emt 0:03:07]} Nxe5 {[%emt 0:05:23]} 16. Rxe5 {[%emt 0:01:02]} Rd5 {[%emt 0:00:07]} 17. Rxd5 {[%emt 0:02:50]} Qxd5 {[%emt 0:00:37]} 18. f3 {[%emt 0:06:37]} Qg5 {[%emt 0:09:12]} 19. Qg3 {[%emt 0:05:45]} Qa5 {[%emt 0:07:43]} 20. a4 {[%emt 0:02:48]} Rg8 {[%emt 0:05:39]} 21. Bh7 {[%emt 0:00:33]} Rh8 {[%emt 0:00:28]} 22. Be4 {[%emt 0:04:15]} Bd7 {[%emt 0:04:44]} 23. Qe5 {[%emt 0:07:05]} Qxe5 {[%emt 0:03:44]} 24. Bxe5 {[%emt 0:00:02]} f6 {[%emt 0:00:26]} 25. Bd4 {[%emt 0:00:05]} c5 {[%emt 0:01:00]} 26. Bg1 {[%emt 0:00:29]} f5 {[%emt 0:02:25]} 27. Bd3 {[%emt 0:00:09]} e5 {[%emt 0:00:53]} 28. Kb2 {[%emt 0:02:03]} Bd6 {[%emt 0:00:16]} 29. b4 {[%emt 0:01:21]} b6 {[%emt 0:00:48]} 30. bxc5 {[%emt 0:01:33]} bxc5 {[%emt 0:00:08]} 31. Kc3 {[%emt 0:01:08]} Kc7 {[%emt 0:00:47]} 32. Rb1 {[%emt 0:00:34]} g6 {[%emt 0:01:10]} 33. a5 {[%emt 0:00:43]} Be6 {[%emt 0:02:22]} 34. Bc4 {[%emt 0:01:05]} Bc8 {[%emt 0:01:57]} 35. Bd5 {[%emt 0:04:07]} Ba6 {[%emt 0:00:18]} 36. Bf7 {[%emt 0:00:42]} g5 {[%emt 0:00:23]} 37. Bg6 {[%emt 0:00:45]} e4 {[%emt 0:01:54]} 38. fxe4 {[%emt 0:01:25]} Be5+ {[%emt 0:00:18]} 39. d4 {[%emt 0:00:09]} cxd4+ {[%emt 0:00:53]} 40. Bxd4 {[%emt 0:00:01]} Bxd4+ {[%emt 0:00:12]} 41. Kxd4 {[%emt 0:30:02]} Rd8+ {[%emt 0:30:58]} 42. Ke5 {[%emt 0:03:07]} fxe4 {[%emt 0:01:14]} 43. Bxe4 {[%emt 0:00:26]} Re8+ {[%emt 0:01:55]} 44. Kd4 {[%emt 0:03:12]} Rd8+ {[%emt 0:00:00]} 45. Bd5 {[%emt 0:00:00]} Rf8 {[%emt 0:00:00]} 46. Re1 {[%emt 0:00:00]} Kd7 {[%emt 0:00:00]} 47. Re5 {[%emt 0:00:00]} 1-0

[Event "WTCC-65 2018"]
[Site "Radebeul"]
[Date "2018.07.11"]
[Round "5"]
[White "Etzold, Ernst-Walter"]
[Black "Emerson, Roger"]
[Result "1/2-1/2"]
[ECO "E92"]
[WhiteElo "2088"]
[BlackElo "2211"]
[Annotator "NA"]
[PlyCount "122"]
[EventDate "2018.07.07"]
[EventType "team-tourn"]
[EventCountry "GER"]
[SourceTitle "playchess.com"]
[Source "ChessBase"]
[SourceQuality "1"]
[TimeControl "40/5400+30:1800+30"]

1. d4 {[%emt 0:00:00]} Nf6 {[%emt 0:00:00]} 2. Nf3 {[%emt 0:00:00]} g6 {[%emt 0:00:00]} 3. c4 {[%emt 0:00:00]} Bg7 {[%emt 0:00:00]} 4. Nc3 {[%emt 0:00:07]} O-O {[%emt 0:00:22]} 5. e4 {[%emt 0:01:42]} d6 {[%emt 0:00:50]} 6. Be2 {[%emt 0:01:28]} e5 {[%emt 0:00:14]} 7. dxe5 {[%emt 0:04:54]} dxe5 {[%emt 0:00:15]} 8. Qxd8 {[%emt 0:00:08]} Rxd8 {[%emt 0:00:10]} 9. Bg5 {[%emt 0:00:06]} Re8 {[%emt 0:00:07]} 10. O-O-O {[%emt 0:00:10]} Na6 {[%emt 0:01:48]} 11. Ne1 {[%emt 0:04:18]} Nc5 {[%emt 0:05:39]} 12. f3 {[%emt 0:00:15] E92: King's Indian: Classical: 6 Be2 e5: 7 dxe5, 7 Be3 and Petrosian System without 7...Nbd7} Ne6 {[%emt 0:00:14]} 13. Be3 {[%emt 0:00:07]} c6 {[%emt 0:00:23]} 14. Nc2 {[%emt 0:01:29]} b6 {[%emt 0:07:11]} 15. Rd2 {[%emt 0:06:51]} c5 $146 {[%emt 0:13:58]} ({Predecessor:} 15... Bf8 16. Rhd1 Bb7 {½-½ (16) Johnston,A (2370)-Zemlyanov,S (2404) ICCF email 2012}) 16. Na3 {[%emt 0:33:02]} Bb7 {[%emt 0:16:09]} 17. Nab5 {[%emt 0:01:31]} Bc6 {[%emt 0:04:15]} 18. Rhd1 {[%emt 0:04:20]} a6 {[%emt 0:04:21]} 19. Na3 {[%emt 0:09:00]} Nd4 {[%emt 0:07:25]} 20. Nd5 {[%emt 0:00:55]} Bxd5 {[%emt 0:01:17]} 21. cxd5 {[%emt 0:00:22]} b5 {[%emt 0:03:24]} 22. Kb1 {[%emt 0:00:33]} Nd7 {[%emt 0:03:06]} 23. Bf1 {[%emt 0:05:56]} h5 {[%emt 0:04:29]} 24. Rf2 {[%emt 0:01:03]} f5 {[%emt 0:03:49]} 25. Bd3 {[%emt 0:07:05]} c4 {[%emt 0:02:26]} 26. Bc2 {[%emt 0:00:14]} Rac8 {[%emt 0:01:28]} 27. exf5 {[%emt 0:00:43]} Nxf5 {[%emt 0:01:15]} 28. Bc1 {[%emt 0:01:01]} Kf7 {[%emt 0:01:43]} 29. g4 {[%emt 0:04:48]} Nd4 {[%emt 0:00:44]} 30. Be4 {[%emt 0:00:56]} Nc5 {[%emt 0:05:05]} 31. gxh5 {[%emt 0:00:21]} gxh5 {[%emt 0:00:09]} 32. Rg1 {[%emt 0:00:13]} Rh8 {[%emt 0:00:34]} 33. Nc2 {[%emt 0:01:21]} Bf6 {[%emt 0:00:39]} 34. Ne3 {[%emt 0:00:38]} Rhg8 {[%emt 0:06:37]} 35. Rfg2 {[%emt 0:00:29]} Rxg2 {[%emt 0:01:09]} 36. Rxg2 {[%emt 0:00:05]} Rg8 {[%emt 0:00:04]} 37. Rxg8 {[%emt 0:01:29]} Kxg8 {[%emt 0:00:02]} 38. Bd2 {[%emt 0:00:15]} Kf7 {[%emt 0:01:48]} 39. Bb4 {[%emt 0:02:59]} Nd3 {[%emt 0:01:56]} 40. Bc3 {[%emt 0:01:20]} Nf4 {[%emt 0:01:59]} 41. Kc1 {[%emt 0:33:43]} Be7 {[%emt 0:05:37]} 42. Kd1 {[%emt 0:00:00]} Bc5 {[%emt 0:01:07]} 43. Nc2 {[%emt 0:00:00]} Ke7 {[%emt 0:01:10]} 44. Nb4 {[%emt 0:00:00]} Kd6 {[%emt 0:03:56]} 45. Nxa6 {[%emt 0:00:00]} Nxd5 {[%emt 0:00:09]} 46. Nxc5 {[%emt 0:00:00]} Kxc5 {[%emt 0:00:07]} 47. Be1 {[%emt 0:00:00]} Ne3+ {[%emt 0:02:41]} 48. Kc1 {[%emt 0:00:00]} Nf1 {[%emt 0:00:12]} 49. h4 {[%emt 0:00:00]} Nh2 {[%emt 0:02:53]} 50. Bf2 {[%emt 0:00:00]} Kd6 {[%emt 0:00:14]} 51. Bg6 {[%emt 0:00:00]} Nhxf3 {[%emt 0:04:24]} 52. Bxh5 {[%emt 0:00:00]} e4 {[%emt 0:00:11] [#]} 53. Be8 {[%emt 0:00:00]} (53. Bxf3 $1 $16 Nxf3 54. h5) 53... b4 {[%emt 0:00:14]} 54. Bg6 {[%emt 0:00:00]} Kd5 {[%emt 0:01:29] [#]} (54... e3 $11 {keeps the balance.} 55. Bxe3 Nxh4) 55. h5 $1 {[%emt 0:00:00]} Ne5 {[%emt 0:00:25]} 56. Kd2 {[%emt 0:01:00]} Nxg6 {[%emt 0:04:46]} 57. hxg6 {[%emt 0:00:02]} Nf5 {[%emt 0:00:12]} 58. a4 {[%emt 0:00:36]} Kc6 {[%emt 0:04:01]} 59. Bd4 {[%emt 0:04:24]} Kb7 {[%emt 0:05:16]} ({Vergiftet wäre} 59... Nxd4 $2 60. g7) 60. g7 e3+ {[%emt 0:00:09] [#]} 61. Bxe3 $11 {[%emt 0:04:20]} ({Only move:} 61. Ke2 $1 $18 Nh6 62. Bc5) 61... Nxg7 1/2-1/2

[Event "WTCC-65 2018"]
[Site "Radebeul"]
[Date "2018.07.11"]
[Round "5"]
[White "Sobeck, Guenter"]
[Black "Berry, Stephen H"]
[Result "0-1"]
[ECO "A05"]
[WhiteElo "2033"]
[BlackElo "2298"]
[Annotator "NA"]
[PlyCount "76"]
[EventDate "2018.07.07"]
[EventType "team-tourn"]
[EventCountry "GER"]
[SourceTitle "playchess.com"]
[Source "ChessBase"]
[SourceQuality "1"]
[TimeControl "40/5400+30:1800+30"]

1. Nf3 {[%emt 0:00:00]} Nf6 {[%emt 0:00:02]} 2. b3 {[%emt 0:00:00]} d6 {[%emt 0:01:36]} 3. Bb2 {[%emt 0:00:30]} e5 {[%emt 0:00:25]} 4. d3 {[%emt 0:00:43]} g6 {[%emt 0:02:32]} 5. Nbd2 {[%emt 0:00:17]} Bg7 {[%emt 0:00:08]} 6. c4 {[%emt 0:00:09]} O-O {[%emt 0:00:16]} 7. e3 {[%emt 0:00:14]} c5 {[%emt 0:02:19]} 8. Be2 {[%emt 0:00:11]} Nc6 {[%emt 0:00:06]} 9. a3 {[%emt 0:00:10]} h6 {[%emt 0:03:30]} 10. O-O {[%emt 0:00:28]} Be6 {[%emt 0:04:06]} 11. Qc2 {[%emt 0:00:23]} Nh5 {[%emt 0:03:38]} 12. Bc3 {[%emt 0:04:11]} a5 13. Qb2 f5 {[%emt 0:08:43]} 14. Rfd1 {[%emt 0:01:18]} Qe7 {[%emt 0:05:37]} 15. Bf1 {[%emt 0:00:28]} Bd7 {[%emt 0:08:00]} 16. g3 {[%emt 0:02:17]} Kh7 {[%emt 0:06:04]} 17. d4 {[%emt 0:04:03]} e4 {[%emt 0:01:39]} 18. Nh4 {[%emt 0:00:43]} cxd4 {[%emt 0:02:10]} 19. exd4 {[%emt 0:00:31]} Rae8 {[%emt 0:05:08]} 20. Re1 {[%emt 0:00:34]} Qf6 {[%emt 0:04:42]} 21. Rad1 {[%emt 0:03:07]} g5 {[%emt 0:01:23]} 22. Be2 {[%emt 0:02:30]} Qf7 {[%emt 0:02:28]} 23. Ng2 {[%emt 0:02:38]} Kh8 {[%emt 0:08:29]} 24. b4 {[%emt 0:03:23]} axb4 {[%emt 0:00:15]} 25. axb4 {[%emt 0:00:01]} f4 {[%emt 0:04:21]} 26. Bxh5 {[%emt 0:06:59]} Qxh5 {[%emt 0:00:03]} 27. b5 {[%emt 0:00:58]} Nd8 {[%emt 0:01:36]} 28. d5 {[%emt 0:01:37]} Bxc3 {[%emt 0:01:29]} 29. Qxc3+ {[%emt 0:00:05]} Kg8 {[%emt 0:00:14]} 30. Qd4 {[%emt 0:04:04]} e3 {[%emt 0:04:58]} 31. fxe3 {[%emt 0:04:29]} f3 {[%emt 0:02:51]} 32. Ne4 {[%emt 0:23:56]} Rxe4 {[%emt 0:01:41]} 33. Qxe4 {[%emt 0:00:07]} f2+ {[%emt 0:00:05]} 34. Kf1 {[%emt 0:00:25]} fxe1=Q+ {[%emt 0:00:12]} 35. Kxe1 {[%emt 0:00:03]} Nf7 {[%emt 0:02:18]} 36. Rd2 {[%emt 0:02:45]} Ne5 {[%emt 0:00:56]} 37. Rf2 {[%emt 0:00:23]} Rxf2 {[%emt 0:00:59]} 38. Kxf2 {[%emt 0:00:02]} Qf7+ {[%emt 0:00:19]} 0-1

[Event "WTCC-65 2018"]
[Site "Radebeul"]
[Date "2018.07.11"]
[Round "5"]
[White "Staub, Gerhard"]
[Black "Bernard, Christophe"]
[Result "0-1"]
[ECO "B23"]
[WhiteElo "2013"]
[BlackElo "2253"]
[Annotator "NA"]
[PlyCount "50"]
[EventDate "2018.07.07"]
[EventType "team-tourn"]
[EventCountry "GER"]
[SourceTitle "playchess.com"]
[Source "ChessBase"]
[SourceQuality "1"]
[TimeControl "40/5400+30:1800+30"]

1. e4 {[%emt 0:00:00]} c5 {[%emt 0:00:00]} 2. Nc3 {[%emt 0:00:00]} Nc6 {[%emt 0:00:13]} 3. f4 {[%emt 0:00:00]} g6 {[%emt 0:02:00]} 4. Nf3 {[%emt 0:00:25]} Bg7 {[%emt 0:00:03]} 5. Bb5 {[%emt 0:00:21]} Nd4 {[%emt 0:01:31]} 6. O-O {[%emt 0:00:41]} a6 {[%emt 0:05:32]} 7. Bd3 {[%emt 0:01:14]} d6 {[%emt 0:08:37]} 8. Nxd4 {[%emt 0:01:17]} cxd4 {[%emt 0:06:22]} 9. Ne2 {[%emt 0:00:18]} Nf6 {[%emt 0:00:21]} 10. c3 {[%emt 0:01:08]} dxc3 {[%emt 0:00:30]} 11. dxc3 {[%emt 0:00:08]} O-O {[%emt 0:00:14]} 12. Kh1 {[%emt 0:02:20]} Qc7 {[%emt 0:04:21]} 13. Nd4 {[%emt 0:04:36]} e5 {[%emt 0:03:11]} 14. fxe5 {[%emt 0:02:30]} dxe5 {[%emt 0:04:48]} 15. Nb3 {[%emt 0:03:19]} Bg4 {[%emt 0:03:53]} 16. Qc2 {[%emt 0:04:00]} Nh5 {[%emt 0:09:17]} 17. Be3 {[%emt 0:09:11]} Rad8 {[%emt 0:00:55]} 18. Bc5 {[%emt 0:03:34]} Rfe8 {[%emt 0:00:16]} 19. Bc4 {[%emt 0:02:26]} Nf4 {[%emt 0:02:57]} 20. Qf2 {[%emt 0:10:33]} b5 {[%emt 0:04:40]} 21. Bb6 {[%emt 0:19:40]} Qxc4 {[%emt 0:00:18]} 22. Bxd8 {[%emt 0:00:07]} Rxd8 {[%emt 0:00:02]} 23. Qh4 {[%emt 0:00:10]} Qc8 {[%emt 0:00:47]} 24. g3 {[%emt 0:03:21]} Nd3 {[%emt 0:01:01]} 25. Nc1 {[%emt 0:05:56]} f6 {[%emt 0:01:30]} 0-1

[Event "WTCC-65 2018"]
[Site "Radebeul"]
[Date "2018.07.11"]
[Round "5"]
[White "Belinchis, Valerii"]
[Black "Malmdin, Nils-Ake"]
[Result "1/2-1/2"]
[ECO "E80"]
[WhiteElo "1881"]
[BlackElo "2138"]
[Annotator "NA"]
[PlyCount "43"]
[EventDate "2018.07.07"]
[EventType "team-tourn"]
[EventCountry "GER"]
[SourceTitle "playchess.com"]
[Source "ChessBase"]
[SourceQuality "1"]
[TimeControl "40/5400+30:1800+30"]

1. d4 {[%emt 0:00:00]} g6 {[%emt 0:00:33]} 2. c4 {[%emt 0:00:00]} Bg7 {[%emt 0:00:23]} 3. Nc3 {[%emt 0:00:07]} Nf6 {[%emt 0:00:57]} 4. e4 {[%emt 0:00:21]} d6 {[%emt 0:00:12]} 5. f3 {[%emt 0:00:16]} c6 {[%emt 0:02:55]} 6. Be3 {[%emt 0:02:01]} a6 {[%emt 0:02:54]} 7. Qd2 {[%emt 0:11:27]} b5 {[%emt 0:06:00]} 8. Bd3 {[%emt 0:03:42]} Nbd7 {[%emt 0:03:30]} 9. Nge2 {[%emt 0:02:00]} Bb7 {[%emt 0:09:50]} 10. b3 {[%emt 0:03:18]} h5 {[%emt 0:06:52]} 11. O-O {[%emt 0:01:54]} Qc7 {[%emt 0:05:20]} 12. Rac1 {[%emt 0:02:02]} b4 {[%emt 0:01:36]} 13. Na4 {[%emt 0:00:57]} c5 {[%emt 0:00:34]} 14. e5 {[%emt 0:04:31]} dxe5 {[%emt 0:02:55]} 15. dxc5 {[%emt 0:00:55]} a5 {[%emt 0:00:46]} 16. Ng3 {[%emt 0:10:38]} Rd8 {[%emt 0:03:49]} 17. Qc2 {[%emt 0:04:58]} Nf8 {[%emt 0:16:55]} 18. Rcd1 {[%emt 0:06:45]} h4 {[%emt 0:04:42]} 19. Ne4 {[%emt 0:02:32]} Ne6 {[%emt 0:04:16]} 20. c6 {[%emt 0:22:06]} Rxd3 {[%emt 0:08:17]} 21. Qxd3 {[%emt 0:02:33]} Bxc6 {[%emt 0:00:27]} 22. Bb6 {[%emt 0:00:51]} 1/2-1/2

[Event "WTCC-65 2018"]
[Site "Radebeul"]
[Date "2018.07.12"]
[Round "6"]
[White "Seret, Jean-Luc"]
[Black "Ackermann, Hans Werner"]
[Result "0-1"]
[ECO "A01"]
[WhiteElo "2353"]
[BlackElo "2267"]
[Annotator "ChessBase"]
[PlyCount "98"]
[EventDate "2018.07.07"]
[EventType "team-tourn"]
[EventCountry "GER"]
[SourceTitle "playchess.com"]
[Source "ChessBase"]
[SourceQuality "1"]
[TimeControl "40/5400+30:1800+30"]

1. b3 {[%emt 0:00:00]} d6 {[%emt 0:01:15]} 2. Bb2 {[%emt 0:00:53]} e5 {[%emt 0:01:12]} 3. e3 {[%emt 0:02:35]} Nf6 {[%emt 0:02:45]} 4. Nf3 {[%emt 0:03:59]} Be7 {[%emt 0:07:28]} 5. d4 {[%emt 0:00:44]} e4 {[%emt 0:02:01]} 6. Nfd2 {[%emt 0:00:13]} O-O {[%emt 0:03:27]} 7. c4 {[%emt 0:00:40]} c6 {[%emt 0:06:41]} 8. Nc3 {[%emt 0:02:07]} d5 {[%emt 0:05:12]} 9. f3 {[%emt 0:03:33]} exf3 {[%emt 0:11:18]} 10. Qxf3 {[%emt 0:01:47]} Bg4 {[%emt 0:04:26]} 11. Qf2 {[%emt 0:01:53]} Na6 {[%emt 0:03:17]} 12. Bd3 {[%emt 0:01:09]} Bh5 {[%emt 0:03:25]} 13. h3 {[%emt 0:13:37]} Nb4 {[%emt 0:01:56]} 14. Bb1 {[%emt 0:02:37]} Bg6 {[%emt 0:03:05]} 15. O-O {[%emt 0:02:49]} Bxb1 {[%emt 0:00:13]} 16. Raxb1 {[%emt 0:01:45]} Nd3 {[%emt 0:00:14]} 17. Qf5 {[%emt 0:01:30]} Nxb2 {[%emt 0:00:54]} 18. Rxb2 {[%emt 0:00:03]} Bb4 {[%emt 0:10:46]} 19. Ndb1 {[%emt 0:00:25]} Qa5 {[%emt 0:03:24]} 20. Qd3 {[%emt 0:00:47]} Rae8 {[%emt 0:02:38]} 21. Rxf6 {[%emt 0:01:10]} gxf6 {[%emt 0:00:05]} 22. Rf2 {[%emt 0:00:41]} Qd8 {[%emt 0:05:44]} 23. cxd5 {[%emt 0:02:44]} Qe7 {[%emt 0:04:43]} 24. e4 {[%emt 0:06:40]} Kg7 {[%emt 0:07:45]} 25. dxc6 {[%emt 0:02:02]} bxc6 {[%emt 0:00:10]} 26. Rf4 {[%emt 0:03:53]} Rd8 {[%emt 0:02:17]} 27. d5 {[%emt 0:01:11]} Bd6 {[%emt 0:02:09]} 28. Rf5 {[%emt 0:03:52]} Rg8 {[%emt 0:01:20]} 29. Nd2 {[%emt 0:00:33]} Kf8 {[%emt 0:00:37]} 30. Nf3 {[%emt 0:01:57]} Bc7 {[%emt 0:01:10]} 31. Qc4 {[%emt 0:01:46]} Qa3 {[%emt 0:01:42]} 32. Nh2 {[%emt 0:09:55]} Qb2 {[%emt 0:01:02]} 33. Ng4 {[%emt 0:00:57]} Rxg4 {[%emt 0:00:41]} 34. hxg4 {[%emt 0:00:22]} Qc1+ {[%emt 0:00:13]} 35. Kf2 {[%emt 0:05:08]} Qd2+ {[%emt 0:00:11]} 36. Kf1 {[%emt 0:02:27]} Bg3 {[%emt 0:00:27]} 37. Kg1 {[%emt 0:02:07]} Qe3+ {[%emt 0:00:03]} 38. Kh1 Qh6+ 39. Kg1 {[%emt 0:00:49]} Qe3+ {[%emt 0:00:35]} 40. Kh1 {[%emt 0:00:05]} Qc1+ {[%emt 0:00:12]} 41. Qf1 {[%emt 0:30:56]} Qxc3 {[%emt 0:30:01]} 42. Rxf6 {[%emt 0:00:18]} Rd7 {[%emt 0:00:12]} 43. Rxc6 {[%emt 0:01:52]} Qe1 {[%emt 0:02:50]} 44. Qxe1 {[%emt 0:00:38]} Bxe1 {[%emt 0:00:00]} 45. Kg1 {[%emt 0:00:00]} Bg3 {[%emt 0:00:00]} 46. Kf1 {[%emt 0:00:00]} Rd6 {[%emt 0:00:00]} 47. Rc3 {[%emt 0:00:00]} Be5 {[%emt 0:00:00]} 48. Rh3 {[%emt 0:00:00]} Kg7 {[%emt 0:00:00]} 49. Rh5 {[%emt 0:00:00]} f6 {[%emt 0:00:00]} 0-1

[Event "WTCC-65 2018"]
[Site "Radebeul"]
[Date "2018.07.12"]
[Round "6"]
[White "Buchal, Stephan"]
[Black "Povah, Nigel E"]
[Result "0-1"]
[ECO "A09"]
[WhiteElo "2329"]
[BlackElo "2245"]
[Annotator "NA"]
[PlyCount "84"]
[EventDate "2018.07.07"]
[EventType "team-tourn"]
[EventCountry "GER"]
[SourceTitle "playchess.com"]
[Source "ChessBase"]
[SourceQuality "1"]
[TimeControl "40/5400+30:1800+30"]

1. Nf3 {[%emt 0:00:00]} d5 {[%emt 0:00:00]} 2. c4 {[%emt 0:00:04]} d4 {[%emt 0:00:00]} 3. b4 {[%emt 0:01:36]} f6 {[%emt 0:00:27]} 4. Na3 {[%emt 0:01:19]} e5 {[%emt 0:04:47]} 5. Nc2 {[%emt 0:00:37]} c5 {[%emt 0:06:59]} 6. a3 {[%emt 0:02:21]} e4 {[%emt 0:05:08]} 7. Ng1 {[%emt 0:00:36]} f5 {[%emt 0:00:34]} 8. d3 {[%emt 0:01:24]} Nc6 {[%emt 0:03:50]} 9. Rb1 {[%emt 0:08:11]} a5 {[%emt 0:09:19]} 10. g3 {[%emt 0:09:59]} Nf6 {[%emt 0:04:28]} 11. Bg2 {[%emt 0:09:33]} Bd6 {[%emt 0:15:13]} 12. bxc5 {[%emt 0:04:04]} Bxc5 {[%emt 0:00:09]} 13. Nh3 {[%emt 0:00:45]} O-O {[%emt 0:04:55]} 14. O-O {[%emt 0:00:19]} h6 {[%emt 0:03:28]} 15. e3 {[%emt 0:13:23]} exd3 {[%emt 0:11:08]} 16. Nxd4 {[%emt 0:02:47]} Bxd4 {[%emt 0:08:09]} 17. exd4 {[%emt 0:00:14]} Qxd4 {[%emt 0:00:16]} 18. Nf4 {[%emt 0:05:27]} Qxc4 {[%emt 0:02:32]} 19. Bb2 {[%emt 0:18:28]} Ne4 {[%emt 0:01:52]} 20. Qh5 {[%emt 0:06:40]} Qf7 {[%emt 0:02:00]} 21. Rfd1 {[%emt 0:01:35]} Rd8 {[%emt 0:03:56]} 22. Rxd3 {[%emt 0:05:34]} Rxd3 {[%emt 0:00:26]} 23. Qxf7+ {[%emt 0:00:02]} Kxf7 {[%emt 0:00:08]} 24. Nxd3 {[%emt 0:00:04]} Be6 {[%emt 0:05:53]} 25. Ba1 {[%emt 0:02:39]} Nd8 {[%emt 0:01:31]} 26. g4 {[%emt 0:02:15]} Ra6 {[%emt 0:03:02]} 27. Rb5 {[%emt 0:01:01]} Nd6 {[%emt 0:00:25]} 28. Rc5 {[%emt 0:00:21]} fxg4 {[%emt 0:00:15]} 29. Rc7+ {[%emt 0:00:33]} Ke8 {[%emt 0:00:35]} 30. Bxg7 {[%emt 0:00:46]} Rb6 {[%emt 0:00:36]} 31. Bxh6 {[%emt 0:01:11]} Rb3 {[%emt 0:00:21]} 32. Nf4 {[%emt 0:00:48]} Rb1+ {[%emt 0:00:11]} 33. Bf1 {[%emt 0:00:32]} Bc4 {[%emt 0:00:01]} 34. Rxc4 {[%emt 0:00:23]} Nxc4 {[%emt 0:00:06]} 35. Kg2 {[%emt 0:00:22]} Nxa3 {[%emt 0:00:24]} 36. Bd3 {[%emt 0:00:23]} Rb6 {[%emt 0:01:57]} 37. Bg7 {[%emt 0:00:38]} Nb1 {[%emt 0:02:10]} 38. Nd5 {[%emt 0:00:45]} Rd6 {[%emt 0:00:50]} 39. Nc7+ {[%emt 0:00:28]} Kf7 {[%emt 0:00:24]} 40. Bxb1 {[%emt 0:00:11]} Rb6 {[%emt 0:00:26]} 41. Bc3 {[%emt 0:03:54]} Rxb1 {[%emt 0:00:37]} 42. Bxa5 {[%emt 0:00:06]} Ne6 {[%emt 0:02:21]} 0-1

[Event "WTCC-65 2018"]
[Site "Radebeul"]
[Date "2018.07.12"]
[Round "6"]
[White "Mishuchkov, Nikolai M"]
[Black "Postler, Reinhard"]
[Result "1/2-1/2"]
[ECO "A06"]
[WhiteElo "2311"]
[BlackElo "2243"]
[Annotator "NA"]
[PlyCount "53"]
[EventDate "2018.07.07"]
[EventType "team-tourn"]
[EventCountry "GER"]
[SourceTitle "playchess.com"]
[Source "ChessBase"]
[SourceQuality "1"]
[TimeControl "40/5400+30:1800+30"]

1. Nf3 {[%emt 0:00:00]} d5 {[%emt 0:00:00]} 2. e3 {[%emt 0:00:00]} Nf6 {[%emt 0:00:02]} 3. c4 {[%emt 0:00:00]} c6 {[%emt 0:00:07]} 4. Nc3 {[%emt 0:00:00]} e6 {[%emt 0:00:07]} 5. b3 {[%emt 0:00:44]} Nbd7 {[%emt 0:00:25]} 6. Bb2 {[%emt 0:00:00]} Bd6 {[%emt 0:00:13]} 7. d4 {[%emt 0:02:34]} O-O {[%emt 0:01:10]} 8. Bd3 {[%emt 0:00:06]} Re8 {[%emt 0:05:44]} 9. O-O {[%emt 0:00:42]} b6 {[%emt 0:02:15]} 10. e4 dxe4 11. Nxe4 {[%emt 0:12:36]} Nxe4 {[%emt 0:00:59]} 12. Bxe4 {[%emt 0:00:07]} Bb7 {[%emt 0:01:11]} 13. Ne5 {[%emt 0:01:10]} f5 {[%emt 0:19:57]} 14. Nxd7 {[%emt 0:10:52]} fxe4 {[%emt 0:01:57]} 15. Ne5 {[%emt 0:00:06]} c5 {[%emt 0:00:49]} 16. dxc5 {[%emt 0:03:26]} Bxc5 {[%emt 0:05:09]} 17. Qd7 {[%emt 0:02:22]} Qe7 {[%emt 0:09:55]} 18. Rad1 {[%emt 0:02:22]} Rad8 {[%emt 0:04:45]} 19. Qxe7 {[%emt 0:00:20]} Bxe7 {[%emt 0:00:03]} 20. Nd7 Bc6 21. Ne5 Bb7 22. Nd7 Bg5 23. Ne5 Be7 24. Rfe1 Bb4 25. Rf1 Bc5 26. Ng4 Rd3 27. Ne5 1/2-1/2

[Event "WTCC-65 2018"]
[Site "Radebeul"]
[Date "2018.07.12"]
[Round "6"]
[White "Berry, Stephen H"]
[Black "Schmidt, Bodo"]
[Result "0-1"]
[ECO "A11"]
[WhiteElo "2298"]
[BlackElo "2344"]
[Annotator "NA"]
[PlyCount "86"]
[EventDate "2018.07.07"]
[EventType "team-tourn"]
[EventCountry "GER"]
[SourceTitle "playchess.com"]
[Source "ChessBase"]
[SourceQuality "1"]
[TimeControl "40/5400+30:1800+30"]

1. c4 {[%emt 0:00:00]} c6 {[%emt 0:02:34]} 2. Nf3 {[%emt 0:00:26]} d5 {[%emt 0:00:06]} 3. g3 {[%emt 0:00:14]} Nf6 {[%emt 0:01:58]} 4. Bg2 {[%emt 0:00:21]} Bg4 {[%emt 0:00:05]} 5. Ne5 {[%emt 0:01:07]} Be6 {[%emt 0:00:06]} 6. O-O {[%emt 0:05:16]} dxc4 {[%emt 0:13:08]} 7. Na3 {[%emt 0:01:17]} Qd4 {[%emt 0:01:00]} 8. Nf3 {[%emt 0:00:35]} Qc5 {[%emt 0:05:49]} 9. Qc2 {[%emt 0:03:16]} Nbd7 {[%emt 0:00:19]} 10. h4 {[%emt 0:09:41]} Bd5 {[%emt 0:02:41]} 11. d3 {[%emt 0:05:28]} cxd3 {[%emt 0:01:00]} 12. Qxd3 {[%emt 0:00:08]} e5 {[%emt 0:05:36]} 13. Be3 {[%emt 0:07:37]} e4 {[%emt 0:03:47]} 14. Bxc5 {[%emt 0:09:18]} exd3 {[%emt 0:00:32]} 15. Bxf8 {[%emt 0:01:28]} dxe2 {[%emt 0:00:32]} 16. Rfe1 {[%emt 0:00:25]} Kxf8 {[%emt 0:00:14]} 17. Rxe2 {[%emt 0:00:08]} g6 {[%emt 0:02:10]} 18. Nd4 {[%emt 0:08:15]} Kg7 {[%emt 0:07:39]} 19. Bxd5 {[%emt 0:01:05]} Nxd5 {[%emt 0:00:10]} 20. Nc4 {[%emt 0:00:40]} N7f6 {[%emt 0:03:51]} 21. Na5 {[%emt 0:07:37]} c5 {[%emt 0:01:21]} 22. Nb5 {[%emt 0:02:41]} b6 {[%emt 0:04:34]} 23. Nc6 {[%emt 0:03:13]} Rhe8 {[%emt 0:01:18]} 24. Rae1 {[%emt 0:03:13]} Rxe2 {[%emt 0:05:53]} 25. Rxe2 {[%emt 0:00:07]} a5 {[%emt 0:00:03]} 26. Nd6 {[%emt 0:04:54]} Nb4 {[%emt 0:10:16]} 27. Nxb4 {[%emt 0:05:04]} axb4 {[%emt 0:00:27]} 28. Re7 {[%emt 0:00:09]} Rf8 {[%emt 0:04:55]} 29. Rb7 {[%emt 0:00:24]} Nd5 {[%emt 0:00:09]} 30. a3 {[%emt 0:04:00]} bxa3 {[%emt 0:04:04]} 31. bxa3 {[%emt 0:00:10]} Kf6 {[%emt 0:06:43]} 32. Kf1 {[%emt 0:00:19]} Ke5 {[%emt 0:03:07]} 33. Nxf7+ {[%emt 0:03:22]} Kd4 {[%emt 0:01:33]} 34. Ng5 {[%emt 0:04:11]} Ra8 {[%emt 0:00:14]} 35. Rxh7 {[%emt 0:00:40]} Rxa3 {[%emt 0:00:39]} 36. Rg7 {[%emt 0:03:49]} b5 {[%emt 0:02:13]} 37. Rxg6 {[%emt 0:00:17]} b4 {[%emt 0:00:06]} 38. Ne6+ {[%emt 0:02:40]} Kc4 {[%emt 0:00:54]} 39. Rg4+ {[%emt 0:01:08]} Kb5 {[%emt 0:00:44]} 40. Ke2 {[%emt 0:03:59]} b3 {[%emt 0:01:38]} 41. Rg5 {[%emt 0:07:44]} b2 {[%emt 0:06:49]} 42. Rxd5 {[%emt 0:01:06]} b1=Q {[%emt 0:01:10]} 43. Rxc5+ {[%emt 0:00:03]} Kb6 {[%emt 0:00:31]} 0-1